bitfinex-derivatives/quotes_SOLF0:USTF0_20251209
["timestamp","ask_amount","ask_price","bid_price","bid_amount"]
[1765296921886,0.04777654,141.66,141.64,0.05234315]
[1765296922095,59.76,141.79,141.64,18.3958577]
[1765296922288,164.8502,141.79,141.65,98.8336]
[1765296922497,98.7707,141.75,141.62,18.34351455]
[1765296922897,158.5026,141.79,141.64,98.8408]
[1765296923097,98.7567,141.77,141.63,98.8478]
[1765296923296,0.05434591,141.73,141.7,0.0507554]
[1765296923602,98.83874591,141.73,141.64,62.0]
[1765296923899,98.83874591,141.73,141.58,98.884]
[1765296923900,98.7929,141.72,141.58,98.8829]
[1765296924093,59.72,141.71,141.59,98.8751]
[1765296924286,98.8017,141.71,141.58,24.70011455]
[1765296924492,158.5046,141.73,141.6,98.8686]
[1765296924493,59.72,141.73,141.6,98.8686]
[1765296924696,0.05225582,141.68,141.65,0.05149036]
[1765296924893,0.0502262,141.68,141.65,0.0544306]
[1765296925302,98.732,141.81,141.68,98.8129]
[1765296925493,98.7504,141.78,141.65,6.3536]
[1765296925689,98.7586,141.77,141.62,130.67123047]
[1765296925898,98.7586,141.77,141.63,98.8475]
[1765296926113,105.1129,141.76,141.63,6.3546]
[1765296926301,0.04737039,141.71,141.69,0.046201]
[1765296926612,0.04775805,141.71,141.6,98.8708]
[1765296926806,98.7407,141.79,141.64,98.8399]
[1765296927011,98.7713,141.75,141.59,98.8789]
[1765296927209,98.7713,141.75,141.61,98.8616]
[1765296927409,98.7612,141.76,141.62,98.8544]
[1765296927714,98.7612,141.76,141.61,98.8616]
[1765296927715,0.04929723,141.7,141.68,0.05409785]
[1765296927914,0.04462583,141.7,141.68,0.04665436]
[1765296928213,59.7,141.79,141.68,1.46665436]
[1765296928409,6.3465,141.82,141.67,98.8192]
[1765296928613,59.68,141.81,141.68,98.8126]
[1765296928813,98.7356,141.8,141.65,98.8322]
[1765296929117,98.7356,141.8,141.63,59.88]
[1765296929118,0.04942388,141.74,141.71,0.05300049]
[1765296929319,0.05119288,141.74,141.71,0.05325054]
[1765296929617,98.7843,141.73,141.59,6.3561]
[1765296929811,98.7843,141.73,141.6,62.0]
[1765296930010,98.8093,141.69,141.56,59.88]
[1765296930507,0.04832207,141.64,141.61,0.04873066]
[1765296930912,98.89482207,141.64,141.61,0.04873066]
[1765296931112,106.66922207,141.64,141.49,98.9443]
[1765296931318,105.2009,141.64,141.49,98.9443]
[1765296931619,98.8682,141.61,141.47,59.86]
[1765296931806,59.66,141.6,141.48,98.9546]
[1765296932007,59.66,141.6,141.53,0.04947851]
[1765296932008,0.04836762,141.55,141.53,0.04947851]
[1765296932219,0.05383663,141.55,141.53,0.04947851]
[1765296933620,100.38503663,141.55,141.41,99.0018]
[1765296933817,59.66,141.6,141.44,98.9824]
[1765296934122,98.8521,141.63,141.48,98.9528]
[1765296934313,158.5082,141.64,141.49,98.9482]
[1765296934508,158.5082,141.64,141.43,98.9888]
[1765296934509,98.9031,141.56,141.41,99.003]
[1765296934816,59.66,141.55,141.41,99.003]
[1765296935021,59.66,141.55,141.45,98.9729]
[1765296935223,59.66,141.55,141.47,98.9605]
[1765296935412,59.66,141.57,141.47,98.9605]
[1765296935718,0.04986981,141.53,141.51,0.05227219]
[1765296936520,59.66,141.69,141.57,98.8923]
[1765296936822,59.66,141.69,141.57,6.3569]
[1765296936823,158.4696,141.69,141.57,6.3569]
[1765296937013,98.8235,141.67,141.53,98.9159]
[1765296937214,98.8119,141.69,141.56,6.3574]
[1765296937412,98.8119,141.69,141.61,0.04863843]
[1765296937413,0.04609244,141.64,141.61,0.04863843]
[1765296937722,98.8703,141.61,141.48,6.3611]
[1765296937911,98.88,141.59,141.45,98.9762]
[1765296938116,158.532,141.6,141.46,98.9692]
[1765296938319,164.8893,141.6,141.48,6.3611]
[1765296938712,59.66,141.59,141.53,98.9178]
[1765296939014,59.66,141.65,141.55,0.04702197]
[1765296939213,98.7693,141.75,141.61,98.8642]
[1765296939420,164.7856,141.74,141.61,6.3553]
[1765296939620,98.7486,141.78,141.63,98.8501]
[1765296939822,59.66,141.77,141.64,160.842]
[1765296940124,0.05364836,141.72,141.69,0.04802232]
[1765296940319,0.04643033,141.72,141.69,0.04526258]
[1765296940624,1.46643033,141.72,141.62,6.3547]
[1765296940924,98.768,141.75,141.62,6.3547]
[1765296941119,98.7329,141.8,141.66,98.8294]
[1765296941310,98.7197,141.82,141.68,98.8145]
[1765296941511,0.0533973,141.76,141.74,0.04760184]
[1765296941727,98.7077,141.84,141.74,0.04874005]
[1765296942020,98.7077,141.84,141.71,6.3506]
[1765296942021,59.66,141.83,141.71,6.3506]
[1765296942423,59.66,141.83,141.72,6.3502]
[1765296942622,105.0372,141.86,141.72,6.3502]
[1765296942623,98.6857,141.87,141.72,98.7877]
[1765296942817,0.04741555,141.81,141.78,0.05257027]
[1765296943019,0.05410049,141.81,141.78,0.04537369]
[1765296945320,2.97174952,141.88,141.8,6.3466]
[1765296945619,2.97174952,141.88,141.8,105.0773]
[1765296946124,2.97174952,141.88,141.77,6.3479]
[1765296946326,0.05371245,141.84,141.81,0.05304748]
[1765296946626,0.05371245,141.84,141.81,6.39924748]
[1765296946819,0.05371245,141.84,141.81,98.77594748]
[1765296947019,2.97174952,141.88,141.82,160.7186]
[1765296947220,2.97174952,141.88,141.84,6.3452]
[1765296947429,2.97174952,141.88,141.84,105.0497]
[1765296947626,2.97174952,141.88,141.81,98.7229]
[1765296947931,2.97174952,141.88,141.83,0.05230461]
[1765296947932,0.0520378,141.86,141.83,0.05230461]
[1765296948627,1.4520378,141.86,141.72,98.7866]
[1765296948815,1.4520378,141.86,141.68,151.45701261]
[1765296948816,98.7157,141.83,141.68,98.8139]
[1765296949016,105.0672,141.82,141.69,6.3517]
[1765296949329,98.6917,141.86,141.72,98.7853]
[1765296949527,0.0538076,141.8,141.78,0.05423098]
[1765296949828,0.05154078,141.8,141.78,0.05423098]
[1765296950028,0.05154078,141.8,141.67,98.8223]
[1765296950029,1.47154078,141.8,141.67,98.8223]
[1765296950231,98.7474,141.78,141.64,98.8418]
[1765296950425,98.7474,141.78,141.64,98.8415]
[1765296950628,6.348,141.78,141.67,6.3529]
[1765296950827,105.0954,141.78,141.65,62.0]
[1765296951026,0.04705751,141.73,141.7,0.05074508]
[1765296951332,0.04705751,141.73,141.61,98.863]
[1765296951525,98.7623,141.76,141.62,98.8549]
[1765296951833,98.7623,141.76,141.63,105.2053]
[1765296951834,6.3497,141.75,141.63,105.2053]
[1765296952027,59.6,141.74,141.63,105.2053]
[1765296952236,0.05407745,141.7,141.67,0.04671695]
[1765296952528,105.1131,141.76,141.63,6.3546]
[1765296952734,0.0472436,141.69,141.66,98.87902869]
[1765296953033,98.7343,141.8,141.66,98.827]
[1765296953034,98.7368,141.8,141.66,98.827]
[1765296953236,98.7404,141.79,141.66,98.827]
[1765296953536,65.948,141.78,141.66,105.1803]
[1765296953734,59.6,141.78,141.67,98.821]
[1765296953927,0.04808916,141.74,141.71,0.05079812]
[1765296955723,98.82328916,141.74,141.61,98.8636]
[1765296955926,98.7752,141.74,141.61,98.8636]
[1765296956136,98.7966,141.71,141.57,98.8883]
[1765296956335,158.4035,141.7,141.57,98.8883]
[1765296956542,158.4035,141.7,141.53,98.9194]
[1765296956543,98.8259,141.67,141.53,98.9194]
[1765296956743,98.91790547,141.61,141.49,6.3605]
[1765296957039,158.4755,141.6,141.47,98.9609]
[1765296957236,59.6,141.6,141.48,160.9518]
[1765296957432,98.9043,141.56,141.43,98.988]
[1765296957631,98.9043,141.56,141.42,98.9975]
[1765296957831,0.04738556,141.5,141.48,0.04729208]
[1765296958035,59.6,141.49,141.37,99.0306]
[1765296958235,98.9291,141.52,141.37,99.0293]
[1765296958537,98.9429,141.5,141.36,99.0393]
[1765296958740,98.9607,141.48,141.35,99.0407]
[1765296958944,99.0037,141.42,141.29,99.0854]
[1765296959238,0.04540899,141.37,141.34,0.04786336]
[1765296959557,1.42,141.36,141.24,105.494]
[1765296959726,99.0295,141.38,141.24,99.1218]
[1765296959927,99.0504,141.35,141.21,99.1411]
[1765296960439,59.62,141.37,141.27,99.15309265]
[1765296960639,99.0501,141.35,141.22,62.0]
[1765296960938,99.029,141.38,141.25,99.1111]
[1765296961143,99.0135,141.4,141.25,99.1111]
[1765296961335,99.0375,141.37,141.24,99.1193]
[1765296961526,99.0375,141.37,141.22,62.0]
[1765296961527,0.04762105,141.32,141.29,0.05152483]
[1765296962230,59.64,141.37,141.29,0.05152483]
[1765296962429,59.64,141.37,141.28,99.092]
[1765296962636,59.64,141.38,141.28,99.092]
[1765296962839,59.64,141.38,141.3,99.0771]
[1765296963033,59.64,141.38,141.3,99.0802]
[1765296963228,98.9651,141.47,141.3,99.0802]
[1765296963229,98.9426,141.5,141.33,99.10888355]
[1765296963440,59.66,141.49,141.37,99.0282]
[1765296963641,59.66,141.51,141.41,99.0002]
[1765296963840,59.66,141.51,141.41,105.3646]
[1765296964137,59.66,141.51,141.4,99.005]
[1765296964338,0.05239684,141.47,141.44,0.05138338]
[1765296965833,100.43919684,141.47,141.34,6.3675]
[1765296966138,59.68,141.47,141.38,99.0238]
[1765296966341,59.68,141.47,141.39,62.0]
[1765296966742,0.05279425,141.44,141.42,0.04943091]
[1765296968037,197.8136,141.56,141.42,0.04943091]
[1765296968240,98.924,141.53,141.39,99.0147]
[1765296969142,0.05074674,141.47,141.45,0.04601184]
[1765296969339,0.05077284,141.47,141.45,0.04601184]
[1765296969635,98.8803,141.59,141.45,100.43961184]
[1765296969830,98.8977,141.57,141.43,98.9878]
[1765296970030,98.9039,141.56,141.44,62.0]
[1765296970232,98.9005,141.56,141.44,62.0]
[1765296970433,98.9099,141.55,141.4,99.0059]
[1765296970633,0.04778469,141.49,141.46,0.05278881]
[1765296970837,98.8604,141.62,141.48,98.9558]
[1765296971037,98.883,141.59,141.44,98.9783]
[1765296971237,98.896,141.57,141.42,98.9957]
[1765296971446,98.9106,141.55,141.41,99.0039]
[1765296971742,98.8751,141.6,141.45,98.9706]
[1765296971942,98.8751,141.6,141.44,98.9805]
[1765296971943,0.05290541,141.54,141.51,0.04711081]
[1765296972135,0.04862356,141.54,141.51,0.05219355]
[1765296975733,59.7,141.6,141.51,0.05219355]
[1765296975945,59.7,141.6,141.45,98.9757]
[1765296976142,59.7,141.6,141.46,98.968]
[1765296976340,59.7,141.6,141.47,105.3242]
[1765296976642,0.05036518,141.55,141.52,0.05157045]
[1765296980440,98.8254,141.67,141.53,98.9199]
[1765296980641,98.8254,141.67,141.47,93.8836134]
[1765296980642,98.8652,141.61,141.47,160.961]
[1765296980943,98.858,141.62,141.49,6.3605]
[1765296980944,6.3564,141.6,141.49,6.3605]
[1765296981137,98.8864,141.58,141.43,98.9873]
[1765296981347,98.9008,141.56,141.42,98.9959]
[1765296981649,0.0538297,141.51,141.49,0.0469144]
[1765296981951,59.7,141.5,141.49,0.0469144]
[1765296982341,0.05359225,141.51,141.49,0.0469144]
[1765296984145,98.8616,141.62,141.49,1.4669144]
[1765296984452,98.8524,141.63,141.5,98.9415]
[1765296984453,59.7,141.61,141.5,98.9415]
[1765296984647,6.3568,141.59,141.48,6.3611]
[1765296984852,6.3568,141.59,141.47,98.9587]
[1765296985051,6.3568,141.59,141.52,0.04932597]
[1765296985350,6.3572,141.58,141.52,0.04932597]
[1765296985558,6.3572,141.58,141.54,0.05086121]
[1765296985740,6.3577,141.57,141.46,62.0]
[1765296985940,98.8915,141.58,141.46,62.0]
[1765296986342,98.9079,141.55,141.42,98.9964]
[1765296986545,59.7,141.54,141.42,98.9964]
[1765296986949,0.05049968,141.49,141.47,0.04487475]
[1765296987149,98.8761,141.6,141.47,0.04487475]
[1765296987446,6.3594,141.53,141.44,6.3632]
[1765296987852,98.9155,141.54,141.4,99.0107]
[1765296988148,6.3592,141.53,141.46,0.05234374]
[1765296988347,98.9282,141.52,141.48,0.04841795]
[1765296988653,98.9388,141.51,141.35,99.0449]
[1765296988954,6.3617,141.48,141.35,99.0463]
[1765296989151,98.9665,141.47,141.29,117.42172901]
[1765296989347,6.3639,141.43,141.32,62.0]
[1765296989547,0.05223494,141.39,141.36,0.04841463]
[1765296989849,0.05223494,141.39,141.36,0.0535603]
[1765296989850,0.05070471,141.39,141.36,0.0535603]
[1765296990858,59.68,141.46,141.38,99.0234]
[1765296991155,59.68,141.5,141.42,98.9957]
[1765296991340,59.7,141.51,141.41,99.0046]
[1765296991540,59.7,141.51,141.4,6.3648]
[1765296991945,59.7,141.51,141.44,0.046886]
[1765296992143,59.7,141.5,141.44,0.046886]
[1765296992346,59.7,141.5,141.46,0.04932115]
[1765296992548,0.04840221,141.49,141.35,99.0402]
[1765296992747,59.7,141.5,141.35,99.0402]
[1765296993158,6.3616,141.48,141.37,6.366]
[1765296993357,98.9398,141.51,141.36,99.038]
[1765296993666,0.05116893,141.43,141.41,6.3643]
[1765296993855,0.05116893,141.43,141.4,99.05498544]
[1765296993856,59.7,141.5,141.4,99.0066]
[1765296994052,59.7,141.5,141.39,99.0146]
[1765296994354,59.7,141.5,141.36,99.0333]
[1765296994863,66.0608,141.5,141.42,0.04465081]
[1765296995062,59.7,141.5,141.42,0.04465081]
[1765296995556,98.9118,141.55,141.42,0.04465081]
[1765296995557,59.7,141.49,141.42,6.40835081]
[1765296995761,59.7,141.49,141.44,0.04685532]
[1765296995956,59.7,141.48,141.44,0.04685532]
[1765296996162,59.7,141.48,141.45,0.04814292]
[1765296996765,98.879,141.59,141.45,0.04814292]
[1765296997057,98.879,141.59,141.44,98.977]
[1765296997058,59.7,141.58,141.51,0.05422064]
[1765296997458,98.8936,141.57,141.42,98.9949]
[1765296997763,98.9009,141.56,141.42,98.9949]
[1765296997961,1.22983408,141.59,141.44,98.983]
[1765296998161,59.7,141.58,141.45,98.9765]
[1765296998361,59.7,141.57,141.45,98.9765]
[1765296998564,0.04838083,141.52,141.5,0.05422034]
[1765296998761,0.04621257,141.52,141.5,0.05422034]
[1765296999758,0.04621257,141.52,141.41,99.0034]
[1765296999962,98.8819,141.59,141.43,98.989]
[1765297000270,6.358,141.56,141.45,6.3626]
[1765297000766,0.04558871,141.52,141.49,0.05442933]
[1765297006268,1.46558871,141.52,141.41,5.7592053]
[1765297006473,1.46558871,141.52,141.41,6.3644]
[1765297006474,98.9324,141.52,141.41,6.3644]
[1765297006768,59.7,141.54,141.4,99.0107]
[1765297006965,59.7,141.54,141.39,104.7730053]
[1765297006966,59.7,141.54,141.39,99.0138]
[1765297007366,0.04527863,141.48,141.45,0.05436549]
[1765297007672,0.04808895,141.48,141.45,0.0533211]
[1765297008557,0.04808895,141.48,141.46,6.3621]
[1765297008759,0.04808895,141.48,141.45,0.0533211]
[1765297009368,0.04808895,141.48,141.46,6.3622]
[1765297009873,98.8514,141.63,141.46,98.9694]
[1765297010077,98.8809,141.59,141.45,62.0]
[1765297010274,98.8863,141.58,141.45,62.0]
[1765297010674,0.04791167,141.53,141.5,0.05359235]
[1765297015472,59.7,141.52,141.5,0.05359235]
[1765297015866,0.04791167,141.53,141.5,0.05359235]
[1765297017472,0.04791167,141.53,141.4,106.05273715]
[1765297017672,6.3597,141.52,141.43,6.3635]
[1765297018480,0.04484726,141.49,141.46,0.05010999]
[1765297020486,0.04484726,141.49,141.47,6.3616]
[1765297020780,0.04484726,141.49,141.46,0.05010999]
[1765297021590,0.04484726,141.49,141.47,6.3619]
[1765297021876,0.04484726,141.49,141.46,0.05010999]
[1765297022275,0.04484726,141.49,141.46,6.41230999]
[1765297022472,0.04484726,141.49,141.46,0.05010999]
[1765297022678,0.04484726,141.49,141.47,6.3617]
[1765297023070,0.04484726,141.49,141.46,0.05010999]
[1765297023671,0.04484726,141.49,141.37,62.0]
[1765297023872,98.9384,141.51,141.39,6.3651]
[1765297024090,98.9508,141.49,141.34,99.0523]
[1765297024287,6.3617,141.48,141.39,6.3652]
[1765297024480,158.6239,141.53,141.38,99.024]
[1765297024481,59.7,141.47,141.38,99.024]
[1765297024676,0.05124765,141.44,141.41,0.04690395]
[1765297025583,0.05124765,141.44,141.42,6.3639]
[1765297026776,7.04233715,141.59,141.43,98.9888]
[1765297027092,66.0581,141.56,141.45,98.9729]
[1765297027276,59.7,141.56,141.44,62.0]
[1765297027478,59.7,141.56,141.45,6.3626]
[1765297027785,0.04546796,141.52,141.45,6.3626]
[1765297027975,0.04546796,141.52,141.49,0.04478125]
[1765297029988,8.39554904,141.65,141.49,0.04478125]
[1765297029989,7.04233715,141.67,141.52,98.9259]
[1765297030176,84.78,141.66,141.55,98.9028]
[1765297030376,84.78,141.66,141.57,7.04233715]
[1765297030574,84.78,141.66,141.56,7.04233715]
[1765297030776,0.04861406,141.62,141.6,0.05411917]
[1765297031486,0.04861406,141.62,141.5,7.04233715]
[1765297031487,1.46861406,141.62,141.5,7.04233715]
[1765297031681,98.8587,141.62,141.48,98.954]
[1765297031989,6.3561,141.6,141.47,112.36673715]
[1765297032289,98.8572,141.63,141.5,7.04233715]
[1765297032489,0.05089054,141.58,141.55,0.04555981]
[1765297034286,0.05089054,141.58,141.46,112.37333715]
[1765297034614,98.8511,141.63,141.5,7.04233715]
[1765297034886,98.881,141.59,141.47,62.0]
[1765297035085,98.8946,141.57,141.45,7.04233715]
[1765297035278,0.04645507,141.52,141.5,0.04625095]
[1765297035477,0.04768137,141.52,141.5,0.04625095]
[1765297036487,59.7,141.55,141.5,1.46625095]
[1765297036679,59.7,141.55,141.5,0.04625095]
[1765297036999,98.9173,141.54,141.5,0.04625095]
[1765297037389,6.3588,141.54,141.5,0.04625095]
[1765297037599,98.9223,141.53,141.39,99.0127]
[1765297037786,98.9352,141.51,141.39,7.04233715]
[1765297038300,98.9499,141.49,141.35,99.0429]
[1765297038594,0.04576743,141.43,141.41,0.05036515]
[1765297038793,0.0475117,141.43,141.41,0.05411483]
[1765297038994,0.0475117,141.43,141.3,104.8389053]
[1765297039198,0.0475117,141.43,141.26,106.15103715]
[1765297039199,99.0125,141.4,141.26,106.15103715]
[1765297039385,99.0358,141.37,141.24,7.04233715]
[1765297039585,99.047,141.35,141.23,6.3726]
[1765297039785,99.0691,141.32,141.19,5.7592053]
[1765297039984,99.0655,141.33,141.19,5.7592053]
[1765297039985,0.05248509,141.27,141.24,0.04932442]
[1765297040197,99.0862,141.3,141.17,7.04233715]
[1765297040399,99.0862,141.3,141.22,0.05161041]
[1765297040400,0.04820266,141.25,141.22,0.05161041]
[1765297041301,59.7,141.24,141.11,7.04233715]
[1765297041490,59.7,141.24,141.08,99.2341]
[1765297041491,59.7,141.24,141.08,106.27643715]
[1765297041796,59.7,141.24,141.11,7.04233715]
[1765297041991,158.8272,141.24,141.11,7.04233715]
[1765297042193,59.7,141.24,141.11,112.63313715]
[1765297042385,0.05339912,141.19,141.16,0.04588135]
[1765297043602,59.77339912,141.19,141.16,0.04588135]
[1765297044096,0.05339912,141.19,141.16,0.04588135]
[1765297044599,99.1989,141.14,141.0,99.291]
[1765297044794,59.74,141.13,141.0,99.291]
[1765297045502,0.05037804,141.08,141.05,0.05157277]
[1765297045799,99.29047804,141.08,140.94,105.7187]
[1765297045999,99.2258,141.1,140.95,99.3229]
[1765297046192,99.2258,141.1,140.93,99.3406]
[1765297046193,99.2325,141.09,140.93,99.3406]
[1765297046395,99.3027,140.99,140.86,3.01692708]
[1765297046600,99.3356,140.94,140.86,3.01692708]
[1765297046797,99.3461,140.93,140.86,3.01692708]
[1765297046997,0.05028773,140.91,140.89,0.05239814]
[1765297047202,59.78,140.9,140.89,0.05239814]
[1765297047497,0.05028773,140.91,140.89,0.05239814]
[1765297048098,99.2737,141.03,140.89,0.05239814]
[1765297048299,99.2737,141.03,140.86,102.40362708]
[1765297048300,99.2989,141.0,140.86,3.01692708]
[1765297048601,99.3344,140.95,140.86,3.01692708]
[1765297048903,159.1398,140.94,140.86,3.01692708]
[1765297049204,99.40488306,140.91,140.89,0.04510897]
[1765297049400,99.3776,140.88,140.7,99.5032]
[1765297049614,99.4023,140.85,140.7,99.499]
[1765297049905,99.4023,140.85,140.71,99.4943]
[1765297050204,99.3655,140.9,140.75,99.4651]
[1765297050408,0.04496157,140.84,140.81,0.05363992]
[1765297050604,0.05338635,140.84,140.81,0.04500748]
[1765297052606,99.2933,141.0,140.83,99.4091]
[1765297052804,99.3483,140.93,140.79,99.4376]
[1765297053007,99.3483,140.93,140.78,99.4445]
[1765297053211,59.86,140.92,140.84,99.4038]
[1765297053414,59.86,140.92,140.78,99.4476]
[1765297053714,0.05007124,140.86,140.84,0.04988293]
[1765297053907,0.04838725,140.86,140.84,0.0542762]
[1765297054210,59.92838725,140.86,140.84,0.0542762]
[1765297054512,99.3084,140.98,140.84,0.0542762]
[1765297054807,105.7091,140.96,140.81,99.4228]
[1765297055010,99.3234,140.96,140.79,99.4376]
[1765297055207,99.3234,140.96,140.81,99.4237]
[1765297055608,99.41736906,140.9,140.87,0.04860406]
[1765297055808,99.41736906,140.9,140.74,62.0]
[1765297055809,99.4023,140.85,140.74,62.0]
[1765297056010,99.4023,140.85,140.7,100.73820272]
[1765297056011,0.04913604,140.81,140.78,0.04601552]
[1765297056211,59.9,140.8,140.78,0.04601552]
[1765297056908,59.9,140.8,140.7,100.73730272]
[1765297056909,59.9,140.8,140.7,1.23610272]
[1765297057119,59.9,140.8,140.68,99.5148]
[1765297057314,59.9,140.8,140.7,1.2362125]
[1765297057511,59.9,140.8,140.63,99.5476]
[1765297057512,99.4447,140.79,140.63,99.5476]
[1765297057711,59.9,140.8,140.67,99.5214]
[1765297057913,0.04570794,140.75,140.72,0.04560115]
[1765297058112,59.9,140.8,140.72,0.04560115]
[1765297058514,99.4441,140.79,140.72,0.04560115]
[1765297058824,99.4657,140.76,140.72,0.04560115]
[1765297059318,0.05385329,140.75,140.72,0.04560115]
[1765297062513,99.4906,140.72,140.59,6.4013]
[1765297062710,99.4292,140.81,140.66,99.5268]
[1765297063026,59.96,140.79,140.68,99.5143]
[1765297063318,0.04685337,140.75,140.72,0.04681796]
[1765297066822,91.5104,140.84,140.73,99.4831]
[1765297067011,151.4904,140.84,140.72,99.4858]
[1765297067208,99.413,140.83,140.7,32.19859991]
[1765297067518,105.8196,140.81,140.68,6.3972]
[1765297067824,0.04897053,140.76,140.73,0.05378499]
[1765297070322,0.04897053,140.76,140.73,1.47378499]
[1765297070514,99.4006,140.85,140.73,1.47378499]
[1765297070714,60.0,140.84,140.71,99.4934]
[1765297071020,105.8124,140.82,140.7,6.3966]
[1765297071212,99.4279,140.81,140.66,159.6885]
[1765297071413,0.05035543,140.75,140.72,0.04596248]
[1765297071727,0.04744485,140.75,140.72,0.04716988]
[1765297072619,99.4773,140.74,140.6,99.5749]
[1765297072816,99.4704,140.75,140.63,7.6365397]
[1765297073015,60.0,140.74,140.63,7.6365397]
[1765297073219,60.0,140.74,140.64,62.0]
[1765297073414,6.3952,140.74,140.64,62.0]
[1765297073622,0.05131136,140.7,140.68,0.05168412]
[1765297075822,0.05131136,140.7,140.63,1.2367397]
[1765297076214,0.05131136,140.7,140.63,7.6363397]
[1765297076414,0.05131136,140.7,140.64,99.5454]
[1765297076622,0.05131136,140.7,140.65,6.3986]
[1765297076924,0.05131136,140.7,140.66,0.05149035]
[1765297078232,0.05131136,140.7,140.67,6.3977]
[1765297078421,6.3925,140.8,140.68,99.5162]
[1765297078828,60.02,140.81,140.71,6.3961]
[1765297079530,0.04620727,140.77,140.75,0.05086783]
[1765297079931,99.3796,140.88,140.75,1.47086783]
[1765297080121,159.3996,140.88,140.74,99.4727]
[1765297080327,6.3896,140.86,140.75,99.4685]
[1765297080525,6.3896,140.86,140.76,6.3937]
[1765297080938,0.04764318,140.82,140.8,0.05351038]
[1765297081129,0.04611115,140.82,140.8,0.04651733]
[1765297081830,99.4386,140.8,140.67,99.524]
[1765297082033,6.3909,140.83,140.71,6.3959]
[1765297082219,198.779,140.87,140.71,99.4959]
[1765297082426,198.779,140.87,140.72,161.4866]
[1765297082627,0.04679439,140.81,140.78,0.04796684]
[1765297082827,0.05213633,140.81,140.78,0.05408583]
[1765297083226,99.4347,140.8,140.64,99.5458]
[1765297083438,99.4629,140.76,140.63,1.2367397]
[1765297083635,99.5132,140.69,140.56,99.6016]
[1765297083938,99.5437,140.65,140.51,99.6351]
[1765297084120,105.9579,140.63,140.49,99.6487]
[1765297084323,6.4002,140.63,140.57,0.05072684]
[1765297084522,99.5437,140.65,140.57,0.05072684]
[1765297084523,0.05079237,140.59,140.57,0.05072684]
[1765297084932,99.4916,140.72,140.58,99.5865]
[1765297085137,99.5032,140.71,140.57,99.5933]
[1765297085335,99.4911,140.72,140.55,99.6072]
[1765297085628,99.4975,140.71,140.58,99.5893]
[1765297085824,99.4975,140.71,140.58,6.402]
[1765297085825,6.3969,140.7,140.58,6.402]
[1765297086025,159.5102,140.73,140.59,99.5791]
[1765297086235,0.04922302,140.65,140.63,0.05093454]
[1765297086435,0.05248366,140.65,140.63,0.04679392]
[1765297087227,0.05248366,140.65,140.58,62.0]
[1765297087530,60.04,140.64,140.5,102.70610464]
[1765297087727,60.04,140.64,140.52,107.27425142]
[1765297088133,60.04,140.64,140.56,99.6017]
[1765297088332,0.05190103,140.61,140.59,0.05169808]
[1765297088532,165.9295,140.72,140.59,99.5792]
[1765297088533,60.04,140.72,140.59,99.5792]
[1765297088732,60.04,140.72,140.62,6.4001]
[1765297088934,60.04,140.72,140.6,99.5742]
[1765297089331,99.5078,140.7,140.57,6.4021]
[1765297089531,0.04813982,140.65,140.62,0.05153567]
[1765297090035,99.4554,140.77,140.63,99.554]
[1765297090244,99.4554,140.77,140.58,99.5878]
[1765297090245,99.4838,140.73,140.58,99.5878]
[1765297090530,105.8793,140.73,140.59,99.5769]
[1765297090732,99.4554,140.77,140.62,99.5599]
[1765297090935,6.3945,140.75,140.63,105.9526]
[1765297091133,0.0494933,140.7,140.68,0.04695706]
[1765297091337,0.04496634,140.7,140.68,0.04695706]
[1765297092843,0.04496634,140.7,140.59,99.5809]
[1765297093038,6.3954,140.73,140.61,99.5675]
[1765297093242,6.3945,140.75,140.62,99.5599]
[1765297093438,99.4724,140.75,140.61,99.5675]
[1765297093743,6.3941,140.76,140.63,105.9535]
[1765297094047,6.3941,140.76,140.62,161.5564]